fUST/lending_fUST_20241201
["ID","MTS","AMOUNT","RATE_DAILY","PERIOD"]
[343917976,1733063443992,-500.0,0.00027397,3]
[343917977,1733063444001,-500.0,0.00027397,3]
[343917978,1733063444011,-500.0,0.00027397,3]
[343917979,1733063444021,-500.0,0.00027397,3]
[343917980,1733063444031,-500.0,0.00027397,3]
[343917981,1733063444041,-500.0,0.00027397,3]
[343917982,1733063444052,-500.0,0.00027397,3]
[343917983,1733063444062,-500.0,0.00027397,3]
[343917984,1733063444072,-500.0,0.00027397,3]
[343917985,1733063444083,-500.0,0.00027397,3]
[343917986,1733063444093,-229.21493961,0.00027397,3]
[343917987,1733063444104,-561.4,0.00027397,3]
[343917988,1733063444118,-500.0,0.00027397,3]
[343917989,1733063444127,-500.0,0.00027397,3]
[343917990,1733063444139,-704.36,0.00027397,3]
[343917991,1733063444149,-500.0,0.00027397,3]
[343917992,1733063444158,-500.0,0.00027397,3]
[343917993,1733063444167,-500.0,0.00027397,3]
[343917994,1733063444177,-500.0,0.00027397,3]
[343917995,1733063444188,-500.0,0.00027397,3]
[343917996,1733063444198,-430.00780353,0.00027397,3]
[343917997,1733063444208,-500.0,0.00027397,3]
[343917998,1733063444217,-500.0,0.00027397,3]
[343917999,1733063444226,-500.0,0.00027397,3]
[343918000,1733063444238,-500.0,0.00027397,3]
[343918001,1733063444248,-500.0,0.00027397,3]
[343918002,1733063444258,-500.0,0.00027397,3]
[343918003,1733063444268,-500.0,0.00027397,3]
[343918004,1733063444278,-500.0,0.00027397,3]
[343918005,1733063444287,-500.0,0.00027397,3]
[343918006,1733063444297,-500.0,0.00027397,3]
[343918007,1733063444307,-500.0,0.00027397,3]
[343918008,1733063444318,-500.0,0.00027397,3]
[343918009,1733063444328,-500.0,0.00027397,3]
[343918010,1733063444338,-500.0,0.00027397,3]
[343918011,1733063444349,-500.0,0.00027397,3]
[343918012,1733063444358,-376.36069322,0.00027397,3]
[343918013,1733063444368,-500.0,0.00027397,3]
[343918014,1733063444377,-500.0,0.00027397,3]
[343918015,1733063444387,-500.0,0.00027397,3]
[343918016,1733063444396,-500.0,0.00027397,3]
[343918017,1733063444406,-325.97560899,0.00027397,3]
[343918018,1733063444416,-500.0,0.00027397,3]
[343918019,1733063444425,-500.0,0.00027397,3]
[343918020,1733063444435,-500.0,0.00027397,3]
[343918021,1733063444445,-500.0,0.00027397,3]
[343918022,1733063444455,-500.0,0.00027397,3]
[343918023,1733063444465,-500.0,0.00027397,3]
[343918024,1733063444475,-500.0,0.00027397,3]
[343918025,1733063444486,-500.0,0.00027397,3]
[343918026,1733063444495,-21651.36,0.00027397,3]
[343918027,1733063444505,-500.0,0.00027397,3]
[343918028,1733063444524,-500.0,0.00027397,3]
[343918029,1733063444535,-500.0,0.00027397,3]
[343918030,1733063444544,-500.0,0.00027397,3]
[343918031,1733063444555,-500.0,0.00027397,3]
[343918032,1733063444565,-500.0,0.00027397,2]
[343918033,1733063444575,-500.0,0.00027397,3]
[343918034,1733063444585,-1169.27083333,0.00027397,3]
[343918035,1733063444595,-1169.27083333,0.00027397,3]
[343918036,1733063444605,-1169.27083333,0.00027397,3]
[343918037,1733063444614,-500.0,0.00027397,2]
[343918038,1733063444625,-581.20949116,0.0002767,2]
[343918039,1733063444635,-210.9365918,0.0002767,2]
[343918040,1733063444645,-187.79062988,0.0002767,2]
[343918041,1733063444655,-500.0,0.00027671,3]
[343918042,1733063444664,-205.63976974,0.00027671,3]
[343918043,1733063444674,-528.94,0.00027671,3]
[343918044,1733063444684,-500.0,0.00027671,3]
[343918045,1733063444693,-500.0,0.00027671,3]
[343918046,1733063444703,-500.0,0.00027671,3]
[343918047,1733063444713,-500.0,0.00027671,3]
[343918048,1733063444722,-500.0,0.00027671,3]
[343918049,1733063444732,-500.0,0.00027671,3]
[343918050,1733063444746,-500.0,0.00027671,3]
[343918051,1733063444755,-500.0,0.00027671,3]
[343918052,1733063444764,-500.0,0.00027671,3]
[343918053,1733063444775,-500.0,0.00027671,3]
[343918054,1733063444785,-500.0,0.00027671,3]
[343918055,1733063444794,-500.0,0.00027671,3]
[343918056,1733063444805,-200.0,0.00027671,3]
[343918057,1733063444817,-500.0,0.00027671,3]
[343918058,1733063444828,-500.0,0.00027671,3]
[343918059,1733063444838,-500.0,0.00027671,3]
[343918060,1733063444847,-500.0,0.00027671,3]
[343918061,1733063444857,-194.8591485,0.00027671,3]
[343918062,1733063444867,-500.0,0.00027671,3]
[343918063,1733063444877,-500.0,0.00027671,3]
[343918064,1733063444887,-500.0,0.00027671,3]
[343918065,1733063444896,-500.0,0.00027671,3]
[343918066,1733063444908,-509.70058836,0.00027671,3]
[343918067,1733063444917,-500.0,0.00027671,3]
[343918068,1733063444927,-500.0,0.00027671,3]
[343918069,1733063444937,-500.0,0.00027671,3]
[343918070,1733063444947,-500.0,0.00027671,3]
[343918071,1733063445094,-500.0,0.00027671,3]
[343918072,1733063445104,-500.0,0.00027671,3]
[343918073,1733063445115,-500.0,0.00027671,3]
[343918074,1733063445125,-500.0,0.00027671,3]
[343918075,1733063445135,-500.0,0.00027671,3]
[343918076,1733063445144,-500.0,0.00027671,3]
[343918077,1733063445154,-500.0,0.00027671,3]
[343918078,1733063445163,-500.0,0.00027671,3]
[343918079,1733063445173,-500.0,0.00027671,3]
[343918080,1733063445184,-500.0,0.00027671,3]
[343918081,1733063445194,-500.0,0.00027671,3]
[343918082,1733063445204,-500.0,0.00027671,3]
[343918083,1733063445215,-500.0,0.00027671,3]
[343918084,1733063445226,-500.0,0.00027671,3]
[343918085,1733063445243,-500.0,0.00027671,3]
[343918086,1733063445255,-500.0,0.00027671,3]
[343918087,1733063445265,-561.4,0.00027671,3]
[343918088,1733063445275,-500.0,0.00027671,3]
[343918089,1733063445286,-500.0,0.00027671,3]
[343918090,1733063445297,-704.36,0.00027671,3]
[343918091,1733063445307,-532.45006225,0.00027671,3]
[343918092,1733063445317,-500.0,0.00027671,3]
[343918093,1733063445326,-500.0,0.00027671,3]
[343918094,1733063445336,-500.0,0.00027671,3]
[343918095,1733063445347,-500.0,0.00027671,3]
[343918096,1733063445356,-500.0,0.00027671,3]
[343918097,1733063445366,-500.0,0.00027671,3]
[343918098,1733063445375,-500.0,0.00027671,3]
[343918099,1733063445386,-500.0,0.00027671,3]
[343918100,1733063445396,-500.0,0.00027671,3]
[343918101,1733063445406,-515.54626672,0.00027671,3]
[343918102,1733063445416,-500.0,0.00027671,3]
[343918103,1733063445425,-500.0,0.00027671,3]
[343918104,1733063445435,-500.0,0.00027671,3]
[343918105,1733063445445,-500.0,0.00027671,3]
[343918106,1733063445455,-500.0,0.00027671,3]
[343918107,1733063445464,-500.0,0.00027671,3]
[343918108,1733063445473,-500.0,0.00027671,3]
[343918109,1733063445483,-500.0,0.00027671,3]
[343918110,1733063445494,-500.0,0.00027671,3]
[343918111,1733063445504,-570.69656474,0.00027671,3]
[343918112,1733063445513,-500.0,0.00027671,3]
[343918113,1733063445522,-500.0,0.00027671,3]
[343918115,1733063445532,-500.0,0.00027671,3]
[343918116,1733063445542,-500.0,0.00027671,3]
[343918117,1733063445551,-373.83100839,0.00027671,3]
[343918118,1733063445561,-500.0,0.00027671,3]
[343918119,1733063445571,-500.0,0.00027671,3]
[343918120,1733063445580,-195.36169231,0.00027671,3]
[343918121,1733063445590,-391.16654922,0.00027671,3]
[343918122,1733063445599,-500.0,0.00027671,3]
[343918123,1733063445609,-21651.36,0.00027671,3]
[343918124,1733063445618,-500.0,0.00027671,3]
[343918125,1733063445628,-500.0,0.00027671,3]
[343918126,1733063445637,-500.0,0.00027671,3]
[343918127,1733063445648,-500.0,0.00027671,3]
[343918128,1733063445657,-500.0,0.00027671,3]
[343918129,1733063445666,-396.6780658,0.00027671,3]
[343918130,1733063445676,-500.0,0.00027671,2]
[343918131,1733063445685,-2377.0,0.00027719,2]
[343918132,1733063445695,-443.672564,0.00027745,15]
[343918133,1733063445705,-230.29,0.000278,31]
[343918134,1733063445716,-230.29,0.000278,31]
[343918135,1733063445725,-230.29,0.000278,31]
[343918136,1733063445736,-230.29,0.000278,31]
[343918137,1733063445749,-230.29,0.000278,31]
[343918138,1733063445759,-230.29,0.000278,31]
[343918139,1733063445768,-230.29,0.000278,31]
[343918140,1733063445779,-230.29,0.000278,31]
[343918141,1733063445788,-230.29,0.000278,31]
[343918142,1733063445798,-230.29,0.000278,31]
[343918143,1733063445808,-230.29,0.000278,31]
[343918144,1733063445818,-230.29,0.000278,31]
[343918145,1733063445828,-9332.11833711,0.000278,3]
[343918146,1733063445838,-1131.75,0.000279,2]
[343918147,1733063445847,-282.05716843,0.00027945,3]
[343918148,1733063445856,-528.94,0.00027945,3]
[343918149,1733063445866,-500.0,0.00027945,3]
[343918150,1733063445875,-500.0,0.00027945,3]
[343918151,1733063445884,-500.0,0.00027945,3]
[343918152,1733063445894,-500.0,0.00027945,3]
[343918153,1733063445903,-500.0,0.00027945,3]
[343918154,1733063445912,-152.77941869,0.00027945,3]
[343918155,1733063445922,-500.0,0.00027945,3]
[343918156,1733063445931,-500.0,0.00027945,3]
[343918157,1733063445940,-500.0,0.00027945,3]
[343918158,1733063445950,-500.0,0.00027945,3]
[343918159,1733063445959,-500.0,0.00027945,3]
[343918160,1733063445969,-200.0,0.00027945,3]
[343918161,1733063445979,-602.34233145,0.00027945,3]
[343918162,1733063445990,-500.0,0.00027945,3]
[343918163,1733063446000,-522.41553553,0.00027945,3]
[343918164,1733063446009,-500.0,0.00027945,3]
[343918165,1733063446019,-500.0,0.00027945,3]
[343918166,1733063446028,-521.71035774,0.00027945,3]
[343918167,1733063446038,-500.0,0.00027945,3]
[343918169,1733063446047,-500.0,0.00027945,3]
[343918171,1733063446057,-500.0,0.00027945,3]
[343918173,1733063446067,-500.0,0.00027945,3]
[343918174,1733063446076,-500.0,0.00027945,3]
[343918175,1733063446086,-500.0,0.00027945,3]
[343918176,1733063446095,-500.0,0.00027945,3]
[343918177,1733063446105,-500.0,0.00027945,3]
[343918179,1733063446114,-500.0,0.00027945,3]
[343918181,1733063446123,-500.0,0.00027945,3]
[343918182,1733063446133,-500.0,0.00027945,3]
[343918183,1733063446142,-500.0,0.00027945,3]
[343918184,1733063446151,-500.0,0.00027945,3]
[343918185,1733063446161,-500.0,0.00027945,3]
[343918186,1733063446170,-513.20656209,0.00027945,3]
[343918187,1733063446179,-500.0,0.00027945,3]
[343918188,1733063446189,-500.0,0.00027945,3]
[343918189,1733063446199,-500.0,0.00027945,3]
[343918190,1733063446208,-500.0,0.00027945,3]
[343918191,1733063446217,-500.0,0.00027945,3]
[343918192,1733063446227,-500.0,0.00027945,3]
[343918194,1733063446236,-500.0,0.00027945,3]
[343918196,1733063446245,-561.4,0.00027945,3]
[343918197,1733063446254,-500.0,0.00027945,3]
[343918198,1733063446263,-500.0,0.00027945,3]
[343918199,1733063446272,-568.19420568,0.00027945,3]
[343918200,1733063446288,-136.16579432,0.00027945,3]
[343918201,1733063446297,-394.72107609,0.00027945,3]
[343918202,1733063446306,-506.02187709,0.00027945,3]
[343918203,1733063446315,-500.0,0.00027945,3]
[343918204,1733063446324,-500.0,0.00027945,3]
[343918205,1733063446334,-500.0,0.00027945,3]
[343918206,1733063446344,-500.0,0.00027945,3]
[343918207,1733063446354,-500.0,0.00027945,3]
[343918208,1733063446363,-500.0,0.00027945,3]
[343918209,1733063446372,-500.0,0.00027945,3]
[343918210,1733063446382,-500.0,0.00027945,3]
[343918211,1733063446392,-500.0,0.00027945,3]
[343918212,1733063446402,-500.0,0.00027945,3]
[343918213,1733063446411,-319.89236444,0.00027945,3]
[343918214,1733063446449,-180.10763556,0.00027945,3]
[343918215,1733063446459,-500.0,0.00027945,3]
[343918216,1733063446469,-226.2705563,0.00027945,3]
[343918217,1733063446478,-500.0,0.00027945,3]
[343918218,1733063446489,-500.0,0.00027945,3]
[343918219,1733063446499,-500.0,0.00027945,3]
[343918220,1733063446508,-500.0,0.00027945,3]
[343918221,1733063446518,-500.0,0.00027945,3]
[343918222,1733063446528,-635.8991276,0.00027945,3]
[343918223,1733063446538,-6182.38847553,0.00027945,3]
[343918224,1733063446551,-15468.97152447,0.00027945,3]
[343918225,1733063446562,-500.0,0.00027945,3]
[343918226,1733063446571,-500.0,0.00027945,3]
[343918227,1733063446580,-500.0,0.00027945,3]
[343918228,1733063446590,-500.0,0.00027945,3]
[343918229,1733063446600,-500.0,0.00027945,3]
[343918230,1733063446609,-203.2708152,0.00027945,2]
[343918231,1733063446619,-450.0,0.00028,120]
[343918232,1733063446629,-1388.51088583,0.00028,2]
[343918240,1733063822950,168.589897,0.00013973,2]
[343918255,1733064351146,-332.25742625,0.000198,2]
[343918259,1733064428090,-934.85041795,0.00019602,2]
[343918260,1733064435110,-150.3,0.00019602,2]
[343918262,1733064464015,167.932799,0.00013973,2]
[343918268,1733064563095,-589.9690641,0.00019602,2]
[343918269,1733064563118,-880.0309359,0.0002,2]
[343918270,1733064573102,-281.7794,0.0002,2]
[343918297,1733064632361,-7.46049743,0.0002,2]
[343918299,1733064632371,-1169.27083333,0.0002,2]
[343918301,1733064632380,-160.35215377,0.000249,7]
[343918302,1733064632389,-603.29651547,0.00025,7]
[343918344,1733064638471,-396.70348453,0.00025,7]
[343918345,1733064638491,-1061.05778057,0.00025111,4]
[343918346,1733064638503,-574.33038628,0.00027297,2]
[343918347,1733064638513,-1377.0,0.00027387,14]
[343918348,1733064638523,-221.18,0.00027387,10]
[343918349,1733064638533,-500.0,0.00027396,2]
[343918350,1733064638543,-500.0,0.00027396,2]
[343918351,1733064638553,-500.0,0.00027396,2]
[343918352,1733064638563,-500.0,0.00027396,2]
[343918353,1733064638573,-500.0,0.00027396,2]
[343918354,1733064638583,-500.0,0.00027396,2]
[343918355,1733064638592,-500.0,0.00027396,2]
[343918356,1733064638602,-500.0,0.00027396,2]
[343918357,1733064638613,-500.0,0.00027396,2]
[343918358,1733064638624,-300.0,0.00027396,2]
[343918359,1733064638634,-250.0,0.00027396,2]
[343918360,1733064638644,-500.0,0.00027396,2]
[343918361,1733064638654,-2920.52101342,0.00027396,2]
[343918362,1733064638664,-188.26429596,0.00027397,2]
[343918363,1733064638675,-500.0,0.00027397,3]
[343918364,1733064638685,-500.0,0.00027397,3]
[343918365,1733064638695,-554.20741979,0.00027397,3]
[343918366,1733064638705,-530.83082706,0.00027397,3]
[343918367,1733064638717,-518.04520736,0.00027397,3]
[343918368,1733064638727,-500.0,0.00027397,3]
[343918369,1733064638737,-500.0,0.00027397,3]
[343918370,1733064638747,-500.0,0.00027397,3]
[343918371,1733064638757,-500.0,0.00027397,3]
[343918372,1733064638767,-500.0,0.00027397,3]
[343918373,1733064638778,-495.08038886,0.00027397,3]
[343918374,1733064638788,-500.0,0.00027397,3]
[343918375,1733064638798,-500.0,0.00027397,3]
[343918376,1733064638808,-500.0,0.00027397,3]
[343918377,1733064638818,-500.0,0.00027397,3]
[343918378,1733064638828,-500.0,0.00027397,3]
[343918379,1733064638839,-415.05218331,0.00027397,3]
[343918380,1733064638848,-500.0,0.00027397,3]
[343918381,1733064638858,-500.0,0.00027397,3]
[343918382,1733064638868,-500.0,0.00027397,3]
[343918383,1733064638879,-500.0,0.00027397,3]
[343918384,1733064638890,-500.0,0.00027397,3]
[343918385,1733064638900,-500.0,0.00027397,3]
[343918386,1733064638909,-133.41356347,0.00027397,3]
[343918392,1733064640342,-366.58643653,0.00027397,3]
[343918393,1733064640352,-500.0,0.00027397,3]
[343918394,1733064640362,-500.0,0.00027397,3]
[343918395,1733064640371,-408.81356347,0.00027397,3]
[343918414,1733064643453,-91.18643653,0.00027397,3]
[343918415,1733064643464,-721.96,0.00027397,3]
[343918416,1733064643475,-500.0,0.00027397,3]
[343918418,1733064643485,-500.0,0.00027397,3]
[343918419,1733064643495,-500.0,0.00027397,3]
[343918421,1733064643504,-500.0,0.00027397,3]
[343918422,1733064643515,-539.41640373,0.00027397,3]
[343918424,1733064643524,-434.82773007,0.00027397,3]
[343918425,1733064643535,-500.0,0.00027397,3]
[343918426,1733064643545,-500.0,0.00027397,3]
[343918427,1733064643555,-500.0,0.00027397,3]
[343918428,1733064643566,-516.22888079,0.00027397,3]
[343918429,1733064643575,-500.0,0.00027397,3]
[343918430,1733064643586,-500.0,0.00027397,3]
[343918431,1733064643596,-500.0,0.00027397,3]
[343918432,1733064643606,-500.0,0.00027397,3]
[343918433,1733064643616,-500.0,0.00027397,3]
[343918434,1733064643626,-411.8181777,0.00027397,3]
[343918435,1733064643636,-500.0,0.00027397,3]
[343918436,1733064643646,-500.0,0.00027397,3]
[343918437,1733064643656,-500.0,0.00027397,3]
[343918438,1733064643667,-500.0,0.00027397,3]
[343918439,1733064643678,-500.0,0.00027397,3]
[343918440,1733064643688,-511.24698668,0.00027397,3]
[343918441,1733064643698,-500.0,0.00027397,3]
[343918442,1733064643708,-511.37935442,0.00027397,3]
[343918443,1733064643720,-500.0,0.00027397,3]
[343918444,1733064643730,-500.0,0.00027397,3]
[343918445,1733064643740,-500.0,0.00027397,3]
[343918446,1733064643750,-503.45166271,0.00027397,3]
[343918447,1733064643760,-500.0,0.00027397,3]
[343918448,1733064643770,-500.0,0.00027397,3]
[343918449,1733064643780,-500.0,0.00027397,3]
[343918450,1733064643790,-514.16210858,0.00027397,3]
[343918451,1733064643800,-500.0,0.00027397,3]
[343918452,1733064643810,-500.0,0.00027397,3]
[343918453,1733064643819,-500.0,0.00027397,3]
[343918454,1733064643829,-500.0,0.00027397,3]
[343918455,1733064643838,-519.99,0.00027397,3]
[343918456,1733064643848,-500.0,0.00027397,3]
[343918457,1733064643858,-500.0,0.00027397,3]
[343918458,1733064643868,-500.0,0.00027397,3]
[343918459,1733064643878,-602.14749427,0.00027397,3]
[343918460,1733064643887,-500.0,0.00027397,3]
[343918461,1733064643897,-165.0847072,0.00027397,3]
[343918462,1733064643907,-597.74081355,0.00027397,3]
[343918463,1733064643916,-500.0,0.00027397,3]
[343918464,1733064643926,-500.0,0.00027397,3]
[343918465,1733064643936,-603.5,0.00027397,3]
[343918466,1733064644064,-500.0,0.00027397,3]
[343918467,1733064644075,-500.0,0.00027397,3]
[343918468,1733064644087,-500.0,0.00027397,3]
[343918469,1733064644100,-500.0,0.00027397,3]
[343918470,1733064644111,-500.0,0.00027397,3]
[343918471,1733064644121,-500.0,0.00027397,3]
[343918472,1733064644131,-500.0,0.00027397,3]
[343918473,1733064644141,-500.0,0.00027397,3]
[343918474,1733064644151,-500.0,0.00027397,3]
[343918475,1733064644160,-500.0,0.00027397,3]
[343918476,1733064644169,-500.0,0.00027397,3]
[343918477,1733064644181,-500.0,0.00027397,3]
[343918478,1733064644192,-500.0,0.00027397,2]
[343918479,1733064644201,-500.0,0.00027397,3]
[343918480,1733064644211,-548.93657184,0.00027397,3]
[343918481,1733064644227,-500.0,0.00027397,3]
[343918482,1733064644236,-500.0,0.00027397,3]
[343918483,1733064644246,-500.0,0.00027397,3]
[343918484,1733064644255,-500.0,0.00027397,3]
[343918485,1733064644264,-500.0,0.00027397,3]
[343918486,1733064644274,-107.2667225,0.00027397,3]
[343918487,1733064644345,-432.9532775,0.00027397,3]
[343918488,1733064644356,-500.0,0.00027397,3]
[343918489,1733064644366,-500.0,0.00027397,3]
[343918490,1733064644377,-500.0,0.00027397,3]
[343918491,1733064644387,-500.0,0.00027397,3]
[343918492,1733064644396,-392.20120983,0.00027397,3]
[343918493,1733064644406,-500.0,0.00027397,3]
[343918494,1733064644416,-500.0,0.00027397,3]
[343918495,1733064644426,-559.42564322,0.00027397,3]
[343918496,1733064644435,-500.0,0.00027397,3]
[343918497,1733064644445,-500.0,0.00027397,3]
[343918498,1733064644455,-500.0,0.00027397,3]
[343918499,1733064644469,-500.0,0.00027397,3]
[343918500,1733064644479,-500.0,0.00027397,3]
[343918501,1733064644489,-500.0,0.00027397,3]
[343918502,1733064644499,-500.0,0.00027397,3]
[343918503,1733064644509,-550.67841102,0.00027397,3]
[343918504,1733064644519,-500.0,0.00027397,3]
[343918505,1733064644529,-500.0,0.00027397,3]
[343918506,1733064644539,-504.03013506,0.00027397,3]
[343918507,1733064644549,-500.0,0.00027397,3]
[343918508,1733064644559,-500.0,0.00027397,3]
[343918509,1733064644569,-18944.94,0.00027397,3]
[343918510,1733064644579,-470.75536038,0.00027397,3]
[343918511,1733064644589,-500.0,0.00027397,3]
[343918512,1733064644598,-500.0,0.00027397,3]
[343918513,1733064644608,-500.0,0.00027397,3]
[343918514,1733064644618,-500.0,0.00027397,3]
[343918515,1733064644627,-500.0,0.00027397,3]
[343918516,1733064644637,-500.0,0.00027397,3]
[343918517,1733064644647,-500.0,0.00027397,3]
[343918518,1733064644656,-500.0,0.00027397,3]
[343918519,1733064644666,-500.0,0.00027397,3]
[343918520,1733064644675,-500.0,0.00027397,3]
[343918521,1733064644684,-500.0,0.00027397,3]
[343918522,1733064644694,-500.0,0.00027397,3]
[343918523,1733064644703,-241.59083774,0.00027397,3]
[343918524,1733064644712,-500.0,0.00027397,3]
[343918525,1733064644722,-500.0,0.00027397,3]
[343918526,1733064644731,-449.73944175,0.00027397,3]
[343918527,1733064644743,-50.26055825,0.00027397,3]
[343918528,1733064644753,-408.03138671,0.00027397,3]
[343918529,1733064644762,-500.0,0.00027397,3]
[343918530,1733064644772,-500.0,0.00027397,3]
[343918531,1733064644781,-503.69414773,0.00027397,3]
[343918532,1733064644790,-146.59847609,0.00027397,3]
[343918533,1733064644803,-731.96652441,0.00027397,3]
[343918534,1733064644874,-290.70583283,0.00027397,3]
[343918535,1733064644883,-485.85847727,0.00027397,3]
[343918555,1733065012553,150.0,0.00016001,2]
[343918557,1733065135388,167.365821,0.00013973,2]
[343918561,1733065538201,-307.67234768,0.00019799,2]
[343918562,1733065538222,-300.0,0.00019999,2]
[343918563,1733065538244,-422.04907835,0.0002,2]
[343918564,1733065591094,-307.67234768,0.0002,2]
[343918565,1733065630098,-439.5494073,0.0002,2]
[343918566,1733065630120,-1402.72598365,0.0002,2]
[343918567,1733065748123,-8084.27401635,0.0002,2]
[343918568,1733065748143,-4741.0,0.0002,2]
[343918569,1733065748162,-4741.0,0.0002,2]
[343918570,1733065748180,-4741.0,0.0002,2]
[343918571,1733065748201,-1915.33948865,0.0002,2]
[343918572,1733065765106,-2825.66051135,0.0002,2]
[343918573,1733065765132,-605.0,0.0002,2]
[343918574,1733065765152,-602.0,0.0002,2]
[343918575,1733065765172,-602.0,0.0002,2]
[343918576,1733065765192,-602.0,0.0002,2]
[343918577,1733065765212,-960.46158996,0.0002,2]
[343918578,1733065778983,250.1,0.00016001,2]
[343918621,1733065835702,-1169.27083333,0.0002,2]
[343918622,1733065835711,-599.34,0.00025111,4]
[343918623,1733065835720,-188.26429596,0.000273,2]
[343918624,1733065835729,-1350.46154191,0.000273,3]
[343918639,1733065838745,-36379.53845809,0.000273,3]
[343918641,1733065838755,-1169.27083333,0.000273,3]
[343918642,1733065838765,-1169.27083333,0.000273,3]
[343918643,1733065838775,-1169.27083333,0.000273,3]
[343918644,1733065838784,-184.31,0.00027387,10]
[343918645,1733065838794,-193.51901295,0.00027396,2]
[343918646,1733065838804,-636.83732417,0.00027396,2]
[343918647,1733065838813,-190.63559044,0.00027396,2]
[343918648,1733065838824,-195.82995049,0.00027396,2]
[343918649,1733065838833,-200.0,0.00027396,2]
[343918650,1733065838843,-500.0,0.00027396,2]
[343918651,1733065838853,-500.0,0.00027396,2]
[343918652,1733065838862,-500.0,0.00027396,2]
[343918653,1733065838872,-500.0,0.00027396,2]
[343918654,1733065838881,-429.73305976,0.00027396,2]
[343918655,1733065838891,-276.4278855,0.00027397,2]
[343918656,1733065838901,-683.41235606,0.00027397,3]
[343918657,1733065838910,-500.0,0.00027397,3]
[343918658,1733065838923,-500.0,0.00027397,3]
[343918659,1733065838934,-500.0,0.00027397,3]
[343918660,1733065838944,-500.0,0.00027397,3]
[343918661,1733065838954,-501.91593808,0.00027397,3]
[343918662,1733065838964,-500.0,0.00027397,3]
[343918663,1733065838973,-500.0,0.00027397,3]
[343918664,1733065838983,-500.0,0.00027397,3]
[343918665,1733065838992,-500.0,0.00027397,3]
[343918666,1733065839002,-500.0,0.00027397,3]
[343918667,1733065839012,-511.43385146,0.00027397,3]
[343918668,1733065839022,-500.0,0.00027397,3]
[343918669,1733065839031,-500.0,0.00027397,3]
[343918670,1733065839041,-500.0,0.00027397,3]
[343918671,1733065839051,-500.0,0.00027397,3]
[343918672,1733065839065,-488.86619994,0.00027397,3]
[343918673,1733065839084,-500.0,0.00027397,3]
[343918674,1733065839094,-407.91146285,0.00027397,3]
[343918675,1733065839103,-500.0,0.00027397,3]
[343918676,1733065839113,-500.0,0.00027397,3]
[343918677,1733065839123,-1000.0,0.00027397,2]
[343918678,1733065839132,-500.0,0.00027397,2]
[343918679,1733065839141,-500.0,0.00027397,3]
[343918680,1733065839151,-500.0,0.00027397,3]
[343918681,1733065839160,-553.03465721,0.00027397,3]
[343918682,1733065839266,-500.0,0.00027397,3]
[343918683,1733065839275,-500.0,0.00027397,3]
[343918684,1733065839285,-500.0,0.00027397,3]
[343918685,1733065839295,-506.0839576,0.00027397,3]
[343918686,1733065839304,-500.0,0.00027397,3]
[343918687,1733065839314,-151.0,0.00027397,7]
[343918688,1733065839323,-500.0,0.00027397,3]